bitfinex/quotes_ETHUSD_20240926
["timestamp","ask_amount","ask_price","bid_price","bid_amount"]
[1727311867401,3.89282,2568.9,2568.3,3.97833173]
[1727311867758,3.89245,2569.1,2568.4,0.07785347]
[1727311868094,3.89245,2569.1,2568.5,0.08475406]
[1727311868274,3.89245,2569.1,2568.6,0.07785245]
[1727311868481,7.78499,2569.1,2568.6,0.07785245]
[1727311868685,3.89245,2569.1,2568.7,0.08444156]
[1727311869174,3.89214,2569.3,2568.7,0.08444156]
[1727311869380,3.89242,2569.1,2568.7,0.08444156]
[1727311869697,0.8126,2569.5,2568.7,0.08444156]
[1727311869698,3.8924,2569.2,2568.7,0.08444156]
[1727311869852,3.89272,2568.9,2568.7,0.08444156]
[1727311870059,3.89254,2569.1,2568.4,4.44440663]
[1727311870404,3.89234,2569.2,2568.5,3.89319]
[1727311870698,3.89172,2569.6,2568.9,3.89263]
[1727311870988,0.0302777,2569.7,2569.0,0.16212151]
[1727311871197,0.0302777,2569.7,2569.1,0.7523]
[1727311871363,0.0302777,2569.7,2569.3,3.89201]
[1727311871571,0.0302777,2569.7,2569.4,4.45079945]
[1727311872697,0.0302777,2569.7,2569.4,0.55886945]
[1727311873566,0.0302777,2569.7,2569.4,0.08406081]
[1727311873759,3.89174,2569.6,2569.4,0.08406081]
[1727311873958,0.0302777,2569.7,2569.4,0.08406081]
[1727311874179,3.9217877,2569.7,2569.4,0.08406081]
[1727311874394,7.8133977,2569.7,2569.4,0.08406081]
[1727311874589,7.8133977,2569.7,2569.2,0.07782935]
[1727311874590,3.9217877,2569.7,2569.2,0.07782935]
[1727311874815,3.9217877,2569.7,2569.5,0.08224523]
[1727311875093,0.0302777,2569.7,2569.2,4.44230429]
[1727311875297,0.0302777,2569.7,2569.6,0.08224523]
[1727311875458,0.0302777,2569.7,2569.5,0.07782063]
[1727311875661,0.0302777,2569.7,2569.6,0.08225498]
[1727311875889,0.0302777,2569.7,2569.6,3.97390498]
[1727311876108,0.0302777,2569.7,2569.6,0.95337019]
[1727311876311,0.0302777,2569.7,2569.6,0.08225498]
[1727311876797,3.89165,2569.6,2569.2,0.47224494]
[1727311877015,7.7834,2569.6,2569.1,0.07783278]
[1727311877201,0.0302777,2569.7,2569.1,3.97021278]
[1727311877393,3.89169,2569.6,2569.1,3.97021278]
[1727311877716,0.0302777,2569.7,2569.3,3.89206]
[1727311877880,0.0302777,2569.7,2569.4,0.0778279]
[1727311878694,0.0302777,2569.7,2569.2,0.47635128]
[1727311878895,3.9217877,2569.7,2569.2,0.47635128]
[1727311879224,0.0302777,2569.7,2569.2,4.44634912]
[1727311879397,0.0302777,2569.7,2569.3,0.83386891]
[1727311879608,3.89169,2569.6,2569.2,0.55417716]
[1727311879806,0.0302777,2569.7,2569.2,0.55417716]
[1727311880720,3.9218577,2569.7,2569.2,0.55417716]
[1727311880925,3.89174,2569.6,2569.2,0.55417716]
[1727311881097,3.89174,2569.6,2569.0,4.68576]
[1727311881098,3.89192,2569.5,2569.1,0.07783118]
[1727311881296,0.0302777,2569.7,2569.1,0.07783118]
[1727311881485,3.9218277,2569.7,2569.2,3.89226]
[1727311881685,0.0302777,2569.7,2569.4,4.65687]
[1727311881917,0.0302777,2569.7,2569.5,0.07782218]
[1727311882228,0.0302777,2569.7,2569.6,0.08224523]
[1727311882401,0.0302777,2569.7,2569.6,3.97389523]
[1727311882725,0.0302777,2569.7,2569.6,4.45556697]
[1727311882896,0.0302777,2569.7,2569.6,0.64172513]
[1727311883101,0.0302777,2569.7,2569.6,0.56391697]
[1727311883604,0.0302777,2569.7,2569.6,4.45556697]
[1727311883806,0.0302777,2569.7,2569.6,4.53338179]
[1727311884822,0.0302777,2569.7,2569.6,0.56391697]
[1727311885236,0.0302777,2569.7,2569.6,0.08224523]
[1727311885599,0.0302777,2569.7,2569.4,0.84282461]
[1727311885927,0.0302777,2569.7,2569.4,4.73465461]
[1727311886163,0.0302777,2569.7,2569.6,3.89165]
[1727311886359,0.0302777,2569.7,2569.6,3.96946766]
[1727311886539,0.0302777,2569.7,2569.6,4.91379632]
[1727311888173,0.0302777,2569.7,2569.6,1.02214632]
[1727311888523,0.0302777,2569.7,2569.6,4.91379632]
[1727311891632,0.0302777,2569.7,2569.6,0.08169889]
[1727311891847,3.9217777,2569.7,2569.6,0.08169889]
[1727311892082,3.9217777,2569.7,2569.2,3.89223]
[1727311892331,0.0302777,2569.7,2569.3,0.15948729]
[1727311892533,0.0302777,2569.7,2569.4,3.85874783]
[1727311892856,0.0302777,2569.7,2569.5,0.07782246]
[1727311893036,0.0302777,2569.7,2569.5,0.15948233]
[1727311893571,0.0302777,2569.7,2569.6,4.64315]
[1727311893797,0.0302777,2569.7,2569.6,9.3477776]
[1727311893953,0.0302777,2569.7,2569.6,10.5939272]
[1727311894152,0.0302777,2569.7,2569.6,14.1439272]
[1727311894356,0.0571235,2570.9,2570.6,4.64162]
[1727311894557,0.0571235,2570.9,2570.7,0.08185498]
[1727311894558,3.9468335,2570.9,2570.7,0.08185498]
[1727311894784,3.9468335,2570.9,2570.3,0.86179214]
[1727311895006,3.9468335,2570.9,2570.4,3.97163801]
[1727311895007,0.0571235,2570.9,2570.4,3.97163801]
[1727311895151,0.0571235,2570.9,2570.5,0.56113342]
[1727311895495,0.0571235,2570.9,2570.6,0.0809381]
[1727311895856,0.0571235,2570.9,2570.7,0.07779067]
[1727311896050,0.0571235,2570.9,2570.6,0.0809381]
[1727311896369,0.0571235,2570.9,2570.7,0.08054809]
[1727311898410,0.7998,2570.8,2570.1,3.89087]
[1727311898549,0.7998,2570.8,2570.2,3.96853695]
[1727311898754,4.68973,2570.8,2570.2,3.96853695]
[1727311898957,0.0571235,2570.9,2570.5,3.89018]
[1727311899194,0.0571235,2570.9,2570.6,0.07778805]
[1727311899379,0.0571235,2570.9,2570.6,3.96781805]
[1727311900075,3.9468335,2570.9,2570.5,0.8263]
[1727311900281,3.9468335,2570.9,2570.6,0.471669]
[1727311900503,0.0571235,2570.9,2570.6,0.471669]
[1727311900807,0.0571235,2570.9,2570.8,3.88983]
[1727311901009,0.0571235,2570.9,2570.8,0.07778056]
[1727311901748,0.0571235,2570.9,2570.6,4.361779]
[1727311902045,0.0571235,2570.9,2570.7,0.5188169]
[1727311903912,0.0571235,2570.9,2570.3,3.8905]
[1727311903913,0.0571235,2570.9,2570.4,3.89042]
[1727311904141,4.71602,2570.8,2570.2,0.7846]
[1727311904315,4.71602,2570.8,2570.3,3.9683851]
[1727311904723,8.60594,2570.8,2570.3,3.9683851]
[1727311904961,8.60594,2570.8,2570.3,0.0777951]
[1727311905159,3.89025,2570.6,2570.1,3.89086]
[1727311905459,0.0571235,2570.9,2570.0,0.07779551]
[1727311905642,0.0571235,2570.9,2570.4,4.69286]
[1727311905818,0.0571235,2570.9,2570.5,0.07779322]
[1727311906021,0.0571235,2570.9,2570.2,3.89072]
[1727311906022,3.88984,2570.8,2570.2,3.89072]
[1727311906227,0.0571235,2570.9,2570.0,0.8025]
[1727311906228,3.89039,2570.5,2570.0,0.8025]
[1727311906429,3.89039,2570.5,2570.2,0.00172]
[1727311906853,0.8035,2570.6,2570.2,3.89245]
[1727311907057,0.8035,2570.6,2570.3,0.07780271]
[1727311907264,4.69373,2570.6,2570.3,0.07780271]
[1727311907465,4.69373,2570.6,2570.2,0.00172]
[1727311907466,3.89031,2570.5,2570.2,0.00172]
[1727311907719,3.89059,2570.3,2570.2,0.00172]
[1727311907953,4.66979,2570.3,2570.2,0.00172]
[1727311908821,7.66979,2570.3,2570.2,0.00172]
[1727311910530,12.2147457,2570.3,2570.2,0.00172]
[1727311910735,14.21429527,2570.3,2570.2,0.00172]
[1727311912534,14.76429527,2570.3,2570.2,0.00172]
[1727311913763,9.66933957,2570.3,2570.2,0.00172]
[1727311918453,7.66979,2570.3,2570.2,0.00172]
[1727311918750,4.66979,2570.3,2570.2,0.00172]
[1727311919850,7.66979,2570.3,2570.2,0.00172]
[1727311920481,4.66979,2570.3,2570.2,0.00172]
[1727311920648,3.89059,2570.3,2570.2,0.00172]
[1727311920852,3.89059,2570.3,2570.2,0.08138955]
[1727311921091,5.057724,2570.3,2570.2,0.00172]
[1727311921262,5.849624,2570.3,2570.2,0.00172]
[1727311921585,10.3945797,2570.3,2570.2,0.00172]
[1727311921792,8.849624,2570.3,2570.2,0.00172]
[1727311922094,4.68249,2570.3,2570.2,0.00172]
[1727311922296,3.89059,2570.3,2570.2,0.00172]
[1727311922652,3.89059,2570.3,2570.2,0.08129198]
[1727311922855,3.89059,2570.3,2570.2,0.00172]
[1727311923087,3.89059,2570.3,2570.2,0.08129198]
[1727311923391,3.89059,2570.3,2570.2,0.00172]
[1727311924198,8.494093,2570.3,2570.2,0.00172]
[1727311925397,9.044093,2570.3,2570.2,0.00172]
[1727311927817,8.494093,2570.3,2570.2,0.00172]
[1727311928037,8.4999293,2570.4,2570.2,0.00172]
[1727311928038,3.9549736,2570.4,2570.2,0.00172]
[1727311928173,0.0645336,2570.4,2570.3,0.7766]
[1727311928378,0.0645336,2570.4,2570.3,1.243518]
[1727311928589,0.0645336,2570.4,2570.3,5.18862405]
[1727311928786,0.0645336,2570.4,2570.3,1.37581923]
[1727311929623,0.0645336,2570.4,2570.3,1.29803405]
[1727311929824,0.0645336,2570.4,2570.3,0.90891514]
[1727311931086,0.0645336,2570.4,2570.3,4.79950514]
[1727311932497,0.0645336,2570.4,2570.3,8.34950514]
[1727311932688,0.0645336,2570.4,2570.3,8.27170605]
[1727311933687,0.0645336,2570.4,2570.3,4.72170605]
[1727311933878,0.0645336,2570.4,2570.3,5.66090958]
[1727311934084,0.0645336,2570.4,2570.3,1.77031935]
[1727311934418,0.0645336,2570.4,2570.3,1.77032773]
[1727311934626,0.0645336,2570.4,2570.3,1.69253266]
[1727311934917,0.0645336,2570.4,2570.3,0.90891419]
[1727311935124,0.0645336,2570.4,2570.3,0.83111605]
[1727311935829,3.9549736,2570.4,2570.3,0.08021605]
[1727311936012,3.9549736,2570.4,2570.2,0.00172]
[1727311936200,3.89059,2570.3,2570.2,0.00172]
[1727311937499,5.43784636,2570.3,2570.2,0.00172]
[1727311937828,8.43784636,2570.3,2570.2,0.00172]
[1727311938601,13.53280206,2570.3,2570.2,0.00172]
[1727311940627,13.53280206,2570.3,2569.0,0.81389422]
[1727311940628,4.69501,2569.1,2569.0,0.81389422]
[1727311940846,8.164511,2569.1,2569.0,0.81389422]
[1727311941129,3.0,2569.0,2568.1,0.8273]
[1727311941292,7.78713,2568.4,2568.1,0.8273]
[1727311941622,7.78713,2568.4,2568.2,0.07636404]
[1727311941623,3.89356,2568.4,2568.2,0.07636404]
[1727311941829,3.89362,2568.3,2568.2,0.07636404]
[1727311941989,3.89362,2568.3,2567.8,0.07786997]
[1727311942190,3.89384,2568.2,2567.8,0.07786997]
[1727311942384,3.89384,2568.2,2567.9,0.07608621]
[1727311942628,3.89362,2568.3,2567.9,0.07608621]
[1727311942817,3.89341,2568.5,2568.0,0.077875]
[1727311943015,3.8931,2568.7,2568.0,4.37675412]
[1727311943251,3.89318,2568.6,2568.1,0.07636946]
[1727311943461,3.89344,2568.5,2568.2,0.0778661]
[1727311943752,3.89353,2568.4,2568.2,0.0778661]
[1727311944031,7.78689,2568.5,2568.3,0.07636946]
[1727311944250,3.89347,2568.4,2568.3,0.07636946]
[1727311944753,9.9964167,2568.4,2568.3,0.07636946]
[1727311944890,3.8946,2567.7,2567.3,0.010067]
[1727311945089,3.89483,2567.6,2567.3,0.010067]
[1727311945328,3.89465,2567.7,2567.4,0.06710328]
[1727311945491,3.89431,2567.9,2567.4,0.06710328]
[1727311945911,3.89431,2567.9,2567.5,0.07788616]
[1727311946191,3.89431,2567.9,2567.5,0.14538958]
[1727311946192,7.78863,2567.9,2567.5,0.14538958]
[1727311946434,3.89431,2567.9,2567.5,0.14538958]
[1727311946634,3.8944,2567.8,2567.5,0.06750342]
[1727311947145,3.89431,2567.9,2567.5,0.06750342]
[1727311947559,7.78864,2567.9,2567.5,0.06750342]
[1727311947759,3.89431,2567.9,2567.5,0.06750342]
[1727311947963,3.89454,2567.7,2567.5,0.06750342]
[1727311948167,3.89454,2567.7,2567.3,0.08795649]
[1727311948479,3.89454,2567.7,2567.3,0.010067]
[1727311948768,3.89454,2567.7,2567.4,0.06760103]
[1727311948972,3.89436,2567.9,2567.4,0.06760103]
[1727311949179,3.89436,2567.9,2567.4,0.14549403]
[1727311949478,3.89433,2567.9,2567.4,0.55055413]
[1727311949630,3.89433,2567.9,2567.4,4.44547413]
[1727311949830,3.89426,2567.9,2567.4,0.55055413]
[1727311950055,3.894,2568.1,2567.5,0.44556511]
[1727311950253,3.894,2568.1,2567.6,0.14556857]
[1727311950569,7.78805,2568.1,2567.6,0.14556857]
[1727311950975,6.89359,2568.4,2567.6,0.14556857]
[1727311951171,3.8937,2568.3,2567.7,3.89445]
[1727311951379,3.89381,2568.2,2567.8,0.48187438]
[1727311951654,7.78711,2568.4,2567.9,0.8031]
[1727311951855,3.89354,2568.4,2568.0,0.60256062]
[1727311952062,3.89354,2568.4,2568.1,0.06764984]
[1727311952257,3.89367,2568.3,2568.1,0.06764984]
[1727311952484,7.78711,2568.4,2567.9,0.88096995]
[1727311952687,7.78711,2568.4,2568.2,0.06742533]
[1727311952897,3.89362,2568.3,2567.9,0.88096995]
[1727311953071,3.89354,2568.4,2568.3,0.06742533]
[1727311953273,3.89324,2568.6,2568.0,3.89407]
[1727311953494,0.8182,2568.8,2568.1,0.06742533]
[1727311953670,7.78718,2568.4,2568.1,0.06742533]
[1727311954084,3.89327,2568.6,2567.9,0.8031]
[1727311954288,3.89327,2568.6,2568.2,0.06742533]
[1727311954289,3.89364,2568.3,2568.2,0.06742533]
[1727311954765,3.89401,2568.1,2567.9,0.8031]
[1727311954999,3.89409,2568.0,2567.6,0.8814724]
[1727311955308,0.389327,2568.5,2567.6,0.8036]
[1727311955309,0.7891,2568.4,2567.6,0.8036]
[1727311955486,3.89424,2567.9,2567.6,0.8036]
[1727311955862,3.89453,2567.7,2567.3,0.807767]
[1727311956311,3.89432,2567.9,2567.4,0.0678938]
[1727311956463,7.78868,2567.9,2567.4,0.07788896]
[1727311956687,3.89452,2567.8,2567.5,0.0678938]
[1727311956918,3.89432,2567.9,2567.5,0.0678938]
[1727311957214,3.89456,2567.7,2567.5,0.0678938]
[1727311957509,3.89456,2567.7,2567.3,0.88565445]
[1727311957729,3.89456,2567.7,2567.3,0.807767]
[1727311958035,3.89456,2567.7,2567.3,1.35596868]
[1727311959027,3.89456,2567.7,2567.3,1.2780797]
[1727311959801,3.89432,2567.9,2567.4,0.07788901]
[1727311960345,7.78868,2567.9,2567.4,0.07788901]
[1727311960632,3.89439,2567.8,2567.4,0.07788901]
[1727311960790,3.89439,2567.8,2567.4,0.60299888]
[1727311961188,7.78869,2567.9,2567.4,0.60299888]
[1727311961419,3.89442,2567.8,2567.4,0.60299888]
[1727311961592,3.89432,2567.9,2567.4,0.60299888]
[1727311961808,3.8944,2567.8,2567.4,0.60299888]
[1727311962004,3.8944,2567.8,2567.5,0.53058959]
[1727311962536,3.89432,2567.9,2567.5,0.53058959]
[1727311962908,3.89368,2568.3,2567.5,0.53058959]
[1727311963221,3.8944,2567.8,2567.5,0.53058959]
[1727311963544,3.89453,2567.7,2567.5,0.53058959]
[1727311963839,3.89453,2567.7,2567.3,0.807767]
[1727311964734,3.89454,2567.7,2567.3,0.807767]
[1727311964946,0.7891,2568.4,2567.3,4.78079604]
[1727311964947,7.78836,2568.0,2567.3,4.78079604]
[1727311965113,3.89425,2567.9,2567.4,3.89491]
[1727311965313,3.89415,2568.0,2567.4,3.89491]
[1727311965314,7.78835,2568.0,2567.5,0.07788564]
[1727311965501,3.89423,2567.9,2567.5,0.9454559]
[1727311965938,3.89415,2568.0,2567.5,4.8402659]
[1727311966106,3.89415,2568.0,2567.5,0.9454559]
[1727311966313,3.89415,2568.0,2567.6,0.48403959]
[1727311967007,5.64428827,2568.4,2567.6,0.48403959]
[1727311967203,5.64428827,2568.4,2567.3,4.702847]
[1727311967204,3.89462,2567.7,2567.3,0.807767]
[1727311967512,3.8947,2567.6,2567.4,0.0682062]
[1727311967701,3.89483,2567.5,2567.4,0.0682062]
[1727311968043,4.673783,2567.5,2567.4,0.0682062]
[1727311968250,4.673783,2567.5,2567.3,0.010067]
[1727311968543,3.89499,2567.4,2567.3,0.010067]
[1727311969404,4.66219,2567.4,2567.3,0.010067]
[1727311971049,7.66219,2567.4,2567.3,0.010067]
[1727311971204,8.8957873,2567.4,2567.3,0.010067]
[1727311978288,3.0,2567.4,2567.3,0.010067]
[1727311978588,3.89499,2567.4,2567.3,0.010067]
[1727311978953,3.89499,2567.4,2567.3,0.07992355]
[1727311979147,3.89461,2567.7,2567.4,0.7913]
[1727311979349,3.89429,2567.9,2567.4,4.68628]
[1727311979581,3.89429,2567.9,2567.5,0.63191582]
[1727311980550,7.78861,2567.9,2567.5,0.63191582]
[1727311980751,7.78861,2567.9,2567.5,0.55403146]
[1727311981395,3.89429,2567.9,2567.5,0.55403146]
[1727311981686,3.89429,2567.9,2567.5,0.06962212]
[1727311981687,3.89468,2567.6,2567.5,0.06962212]
[1727311981888,3.89499,2567.4,2567.3,0.010067]
[1727311982855,4.65309,2567.4,2567.3,0.010067]
[1727311983167,7.65309,2567.4,2567.3,0.010067]
[1727311983366,8.807884,2567.4,2567.3,0.010067]
[1727311984760,6.89499,2567.4,2567.3,0.010067]
[1727311984969,3.89499,2567.4,2567.3,0.010067]
[1727311986865,3.89499,2567.4,2567.3,0.07664472]
[1727311987073,3.89499,2567.4,2567.3,0.010067]
[1727311987661,3.89485,2567.5,2567.3,0.010067]
[1727311987861,3.89485,2567.5,2567.4,0.0665582]
[1727311989103,7.78922,2567.7,2567.4,0.0665582]
[1727311989264,3.89479,2567.6,2567.4,0.0665582]
[1727311989461,3.89454,2567.7,2567.4,0.0665582]
[1727311989680,7.78922,2567.7,2567.4,0.0665582]
[1727311989864,3.89454,2567.7,2567.4,0.0665582]
[1727311990058,3.89447,2567.8,2567.4,0.0665582]
[1727311990301,3.89433,2567.9,2567.4,0.54941216]
[1727311990669,3.89439,2567.8,2567.4,0.54941216]
[1727311991519,0.8257,2568.3,2567.6,0.773]
[1727311991805,4.80292397,2569.3,2567.8,3.8943]
[1727311991806,3.89355,2568.4,2567.8,3.8943]
[1727311992007,0.8001,2569.0,2567.8,3.8943]
[1727311992008,7.78769,2568.2,2567.9,0.8107]
[1727311992162,3.89408,2568.0,2567.9,0.06652885]
[1727311992598,7.78893,2567.8,2567.6,0.8107]
[1727311992807,4.69378,2568.3,2567.0,3.89552]
[1727311992808,3.89493,2567.5,2567.3,0.820767]
[1727311994098,3.89462,2567.7,2567.3,0.820767]
[1727311994461,3.89484,2567.5,2567.3,0.820767]
[1727311994798,3.89484,2567.5,2567.3,0.010067]
[1727311995373,3.89462,2567.7,2567.3,0.010067]
[1727311995573,3.89477,2567.6,2567.3,0.010067]
[1727311995809,3.89439,2567.8,2567.3,0.010067]
[1727311996009,3.89484,2567.5,2567.3,0.010067]
[1727311996511,3.89499,2567.4,2567.3,0.410067]
[1727311996680,3.89484,2567.5,2567.3,0.410067]
[1727311997310,3.89461,2567.7,2567.3,0.410067]
[1727311997830,3.0,2567.9,2567.3,0.410067]
[1727311997831,3.89499,2567.4,2567.3,0.410067]
[1727311997972,4.70299,2567.4,2567.3,0.410067]
[1727311998375,3.89499,2567.4,2567.3,0.410067]
[1727311998925,3.89499,2567.4,2567.3,0.47659585]
[1727312001975,3.89439,2567.8,2567.3,0.47659585]
[1727312002177,3.8943,2567.9,2567.4,0.51731659]
[1727312002517,3.89438,2567.8,2567.5,0.06684108]
[1727312002718,3.8943,2567.9,2567.5,0.06684108]
[1727312003018,3.8943,2567.9,2567.6,0.0778877]
[1727312003215,7.8590287,2569.2,2567.7,0.07788552]
[1727312003518,3.8931,2568.7,2568.0,3.89405]
[1727312003829,3.89325,2568.6,2568.2,0.7956]
[1727312004186,3.89325,2568.6,2568.3,0.06665571]
[1727312004513,3.8931,2568.7,2568.2,0.7956]
[1727312004514,3.89337,2568.5,2568.2,0.7956]
[1727312004819,3.89337,2568.5,2568.3,0.06601202]
[1727312004991,7.78625,2568.7,2568.3,0.06601202]
[1727312005194,3.89296,2568.8,2568.2,0.87346502]
[1727312005432,3.89327,2568.6,2568.4,0.06601202]
[1727312005639,3.89332,2568.5,2568.2,0.7956]
[1727312005920,3.89327,2568.6,2568.2,0.7956]
[1727312005921,7.78657,2568.6,2568.2,0.7956]
[1727312006076,3.89327,2568.6,2568.2,0.7956]
[1727312006500,3.89333,2568.5,2568.2,0.7956]
[1727312006702,3.89327,2568.6,2568.2,0.7956]
[1727312007151,3.89295,2568.8,2568.3,0.07786327]
[1727312007315,3.89262,2569.0,2568.4,3.89338]
[1727312007316,7.78531,2569.0,2568.4,3.89338]
[1727312007634,3.8925,2569.1,2568.7,0.8012]
[1727312007842,3.8925,2569.1,2568.7,0.87904538]
[1727312007999,3.8924,2569.2,2568.7,0.87904538]
[1727312008205,3.892,2569.4,2568.7,0.87904538]
[1727312008504,3.892,2569.4,2568.9,0.7819]
[1727312008702,3.892,2569.4,2569.0,0.07784153]
[1727312009027,3.89226,2569.2,2569.0,0.07784153]
[1727312009204,3.89226,2569.2,2568.9,0.8597439]
[1727312009538,3.89243,2569.1,2568.9,0.7819]
[1727312009903,3.89206,2569.4,2568.9,0.7819]
[1727312010102,3.8922,2569.3,2568.9,1.38273092]
[1727312010400,3.9189033,2569.6,2568.9,1.38273092]
[1727312010599,3.89182,2569.5,2568.9,4.75243618]
[1727312010824,3.9189033,2569.6,2569.0,3.89252]
[1727312011036,3.9189033,2569.6,2569.1,0.07783463]
[1727312011212,3.9189033,2569.6,2569.1,0.55306009]
[1727312011407,7.8107033,2569.6,2569.1,0.55306009]
[1727312011640,3.9189033,2569.6,2569.1,0.55306009]
[1727312011847,3.89183,2569.5,2569.1,0.47522546]
[1727312012002,7.8106733,2569.6,2569.2,0.7653]
[1727312012210,3.89182,2569.5,2569.2,1.20207455]
[1727312012513,3.9189033,2569.6,2569.2,1.20207455]
[1727312012741,3.9189033,2569.6,2569.3,0.07783441]
[1727312012742,0.0272333,2569.6,2569.3,0.07783441]
[1727312013102,0.0272333,2569.6,2569.3,0.59504731]
[1727312013459,0.0272333,2569.6,2569.3,4.48714731]
[1727312013737,0.0272333,2569.6,2569.3,0.59504731]
[1727312015262,3.9189133,2569.6,2569.2,1.20207455]
[1727312015475,3.9189133,2569.6,2569.2,0.7653]
[1727312015642,7.8106933,2569.6,2569.2,0.7653]
[1727312015846,3.9189133,2569.6,2569.2,0.7653]
[1727312016176,3.89181,2569.5,2568.9,0.8169]
[1727312016347,0.0272333,2569.6,2569.3,0.06370148]
[1727312016547,3.9188833,2569.6,2569.0,3.89241]
[1727312016785,3.9188833,2569.6,2569.1,0.07783344]
[1727312016984,3.9188833,2569.6,2569.1,0.14165182]
[1727312017700,3.9188833,2569.6,2569.1,0.626748]
[1727312018392,3.89219,2569.3,2569.1,0.06381838]
[1727312018562,3.8919,2569.5,2569.1,0.06381838]
[1727312018884,0.0272333,2569.6,2569.2,0.06278539]
[1727312019068,3.89182,2569.5,2569.2,0.06278539]
[1727312019278,0.0272333,2569.6,2569.2,0.06278539]
[1727312019661,3.9188933,2569.6,2569.2,0.06278539]
[1727312020284,3.9188933,2569.6,2569.2,0.46608707]
[1727312020475,3.9188933,2569.6,2569.3,0.07783366]
[1727312020679,0.0272333,2569.6,2569.4,0.87425616]
[1727312021389,0.0272333,2569.6,2569.5,3.8918]
[1727312021610,0.0272333,2569.6,2569.5,0.95140417]
[1727312021825,0.0272333,2569.6,2569.5,1.01408241]
[1727312022122,0.0272333,2569.6,2569.5,4.90588241]
[1727312022270,0.0272333,2569.6,2569.5,5.66948241]
[1727312025222,0.0373003,2570.4,2569.5,5.66948241]
[1727312025223,0.0373003,2570.4,2569.7,0.55]
[1727312025526,0.0373003,2570.4,2569.5,6.10903811]
[1727312025527,0.0373003,2570.4,2570.3,8.27239]
[1727312025876,0.0373003,2570.4,2570.3,8.33427951]
[1727312026321,0.0373003,2570.4,2570.3,7.78427951]
[1727312027711,0.0373003,2570.4,2570.3,0.89368951]
[1727312027928,0.0373003,2570.4,2570.3,5.34050931]
[1727312030822,0.0373003,2570.4,2570.3,13.43545662]
[1727312031024,0.0373003,2571.2,2571.1,3.88938]
[1727312031315,0.0373003,2571.2,2571.1,4.79574669]
[1727312031551,0.0373003,2571.2,2571.1,5.72498594]
[1727312031734,0.0373003,2571.2,2571.1,0.92923925]
[1727312031900,0.0373003,2571.2,2571.1,0.06071158]
[1727312032223,0.0373003,2571.2,2570.9,3.88959]
[1727312032419,0.0373003,2571.2,2571.1,0.06040029]
[1727312032583,0.0373003,2571.2,2571.1,3.88938]
[1727312032778,0.0373003,2571.2,2571.1,4.77894802]
[1727312033016,0.0373003,2571.2,2571.1,5.64578182]
[1727312034181,0.0373003,2571.2,2571.1,9.19578182]
[1727312034420,0.0373003,2571.9,2571.8,3.88832]
[1727312034595,0.0373003,2571.9,2571.8,4.72012]
[1727312034917,0.0373003,2571.9,2571.8,6.17894415]
[1727312036311,0.0373003,2571.9,2571.8,6.72894415]
[1727312036730,0.0373003,2571.9,2571.8,6.17893767]
[1727312037827,0.0373003,2571.9,2571.8,6.10119794]
[1727312038108,0.0373003,2571.9,2571.8,6.17894271]
[1727312038543,0.0373003,2571.9,2571.8,6.17894274]
[1727312039356,0.0373003,2571.9,2571.8,6.72894274]
[1727312041027,0.0373003,2571.9,2571.8,9.72894274]
[1727312041214,0.0373003,2571.9,2571.8,9.65119794]
[1727312041609,0.0373003,2572.7,2571.8,9.65119794]
[1727312041610,0.0373003,2572.7,2571.9,0.55]
[1727312041818,0.0373003,2572.7,2572.4,3.88739]
[1727312042050,0.0373003,2572.7,2572.5,0.07773128]
[1727312042449,0.0373003,2572.7,2572.6,0.05731712]
[1727312042840,0.0373003,2572.7,2572.6,5.109789]
[1727312043028,4.7147,2573.3,2572.6,5.109789]
[1727312043029,0.0524129,2573.0,2572.7,3.88686]
[1727312043226,0.0524129,2573.0,2572.8,3.8868]
[1727312043551,0.0524129,2573.0,2572.8,3.9425015]
[1727312043754,0.0524129,2573.0,2572.8,0.57229873]
[1727312044139,0.0524129,2573.0,2572.9,0.07772226]
[1727312044340,0.0524129,2573.0,2572.9,5.3252472]
[1727312044975,0.0524129,2573.0,2572.9,5.3252293]
[1727312045493,3.88558,2573.7,2572.9,0.81086494]
[1727312045652,4.7144722,2573.8,2573.2,3.88613]
[1727312045979,4.7144722,2573.8,2573.3,4.79635714]
[1727312046282,0.8290722,2573.8,2573.4,3.88581]
[1727312046449,0.0378722,2573.8,2573.5,0.07770331]
[1727312046641,0.0378722,2573.8,2573.5,0.13291182]
[1727312047051,0.0378722,2573.8,2573.5,1.005722]
[1727312047254,0.0378722,2573.8,2573.5,4.891472]
[1727312047441,0.0378722,2573.8,2573.5,4.81367869]
[1727312047969,0.0378722,2573.8,2573.5,0.92801869]
[1727312048343,0.0378722,2573.8,2573.6,0.07769613]
[1727312048567,0.0378722,2573.8,2573.6,0.64918261]
[1727312048745,0.0378722,2573.8,2573.7,0.05520851]
[1727312051573,0.0378722,2573.8,2573.5,3.96343107]
[1727312051821,0.0378722,2573.8,2573.7,0.05520851]
[1727312052021,0.0378722,2573.8,2573.5,0.07770107]
[1727312052193,0.0378722,2573.8,2573.7,0.05520851]
[1727312052399,0.0378722,2573.8,2573.5,0.55640418]
[1727312052600,0.0378722,2573.8,2573.7,0.05520851]
[1727312052836,0.0378722,2573.8,2573.5,0.55640418]
[1727312053021,3.9232022,2573.8,2573.7,0.05520851]
[1727312053342,3.886,2573.4,2572.8,4.64851]
[1727312053554,7.77143,2573.6,2572.8,4.64851]
[1727312053698,3.88579,2573.5,2573.0,3.88649]
[1727312053895,0.7973,2573.7,2573.1,0.07771383]
[1727312054195,0.0378722,2573.8,2573.2,0.7618]
[1727312054399,0.0378722,2573.8,2573.5,3.88567]
[1727312054671,0.0378722,2573.8,2573.6,0.07769673]
[1727312054821,0.774,2574.5,2574.0,3.8849]
[1727312055000,0.774,2574.5,2573.6,4.3596224]
[1727312055001,0.0378722,2574.6,2574.4,3.8844]
[1727312055230,0.0378722,2574.6,2574.1,0.07768603]
[1727312055231,0.0378722,2574.6,2574.5,0.38844]
[1727312055445,0.0378722,2574.6,2574.5,3.96191303]
[1727312055846,0.0378722,2574.6,2574.5,7.51190405]
[1727312056021,0.0378722,2574.6,2574.5,6.88424]
[1727312056929,3.9208422,2575.4,2574.5,6.88424]
[1727312056930,3.9208422,2575.4,2574.8,3.88376]
[1727312057131,3.9208422,2575.4,2574.9,0.07765869]
[1727312057554,3.9208422,2575.4,2574.8,4.660471]
[1727312058066,3.9208422,2575.4,2574.9,0.89185765]